[Event "Titled Tuesday Blitz April 19 Late 2022"]
[White "Bilan, Danila"]
[Black "Mohammadian, Mohammad"]
[WhiteFideId "24161918"]
[BlackFideId "12566055"]
[WhiteElo "2164"]
[BlackElo "1544"]
[Result "1-0"]
[Round "04"]
[TimeControl "180+1"]
[Date "2022.04.19"]
[WhiteClock "0:00:22"]
[BlackClock "0:00:22"]

1. d4 {[%clk 0:03:00]}  Nf6 {[%clk 0:02:58]} 2. Nf3 {[%clk 0:02:59]}  g6 {[%clk 0:02:58]} 3. Bg5 {[%clk 0:02:58]}  Bg7 {[%clk 0:02:58]} 4. c3 {[%clk 0:02:58]}  d5 {[%clk 0:02:57]} 5. Nbd2 {[%clk 0:02:58]}  O-O {[%clk 0:02:56]} 6. e3 {[%clk 0:02:59]}  c6 {[%clk 0:02:56]} 7. Bd3 {[%clk 0:02:58]}  Bg4 {[%clk 0:02:54]} 8. h3 {[%clk 0:02:58]}  Bc8 {[%clk 0:02:50]} 9. O-O {[%clk 0:02:56]}  Nbd7 {[%clk 0:02:50]} 10. Re1 {[%clk 0:02:55]}  Re8 {[%clk 0:02:49]} 11. e4 {[%clk 0:02:46]}  dxe4 {[%clk 0:02:48]} 12. Nxe4 {[%clk 0:02:45]}  Nxe4 {[%clk 0:02:48]} 13. Bxe4 {[%clk 0:02:45]}  Qb6 {[%clk 0:02:45]} 14. Qb3 {[%clk 0:02:40]}  Qxb3 {[%clk 0:02:44]} 15. axb3 {[%clk 0:02:40]}  e5 {[%clk 0:02:41]} 16. dxe5 {[%clk 0:02:02]}  Nxe5 {[%clk 0:02:40]} 17. Nxe5 {[%clk 0:01:50]}  Rxe5 {[%clk 0:02:37]} 18. Bf4 {[%clk 0:01:43]}  Re8 {[%clk 0:02:34]} 19. b4 {[%clk 0:01:20]}  Be6 {[%clk 0:02:33]} 20. b5 {[%clk 0:01:13]}  Bd5 {[%clk 0:02:32]} 21. Bxd5 {[%clk 0:01:11]}  cxd5 {[%clk 0:02:29]} 22. Rxe8+ {[%clk 0:01:08]}  Rxe8 {[%clk 0:02:28]} 23. Rxa7 {[%clk 0:01:08]}  d4 {[%clk 0:02:12]} 24. Rxb7 {[%clk 0:00:55]}  dxc3 {[%clk 0:02:12]} 25. bxc3 {[%clk 0:00:55]}  Bxc3 {[%clk 0:02:10]} 26. Rb8 {[%clk 0:00:54]}  Rxb8 {[%clk 0:02:09]} 27. Bxb8 {[%clk 0:00:55]}  Bd4 {[%clk 0:02:05]} 28. Bc7 {[%clk 0:00:52]}  Kf8 {[%clk 0:01:55]} 29. b6 {[%clk 0:00:51]}  Ke8 {[%clk 0:01:53]} 30. b7 {[%clk 0:00:51]}  Ba7 {[%clk 0:01:49]} 31. b8=Q+ {[%clk 0:00:52]}  Bxb8 {[%clk 0:01:49]} 32. Bxb8 {[%clk 0:00:52]}  Ke7 {[%clk 0:01:47]} 33. Kf1 {[%clk 0:00:52]}  Ke6 {[%clk 0:01:46]} 34. Ke2 {[%clk 0:00:52]}  f5 {[%clk 0:01:46]} 35. Ke3 {[%clk 0:00:52]}  g5 {[%clk 0:01:46]} 36. f4 {[%clk 0:00:44]}  h6 {[%clk 0:01:45]} 37. g3 {[%clk 0:00:41]}  Kf6 {[%clk 0:01:42]} 38. Be5+ {[%clk 0:00:39]}  Kg6 {[%clk 0:01:42]} 39. Kf3 {[%clk 0:00:39]}  Kh5 {[%clk 0:01:32]} 40. g4+ {[%clk 0:00:38]}  fxg4+ {[%clk 0:01:30]} 41. hxg4+ {[%clk 0:00:37]}  Kg6 {[%clk 0:01:23]} 42. f5+ {[%clk 0:00:35]}  Kf7 {[%clk 0:01:23]} 43. Ke4 {[%clk 0:00:35]}  Kg8 {[%clk 0:01:12]} 44. f6 {[%clk 0:00:33]}  Kf7 {[%clk 0:01:10]} 45. Kf5 {[%clk 0:00:33]}  Kg8 {[%clk 0:00:52]} 46. Kg6 {[%clk 0:00:29]}  Kf8 {[%clk 0:00:51]} 47. f7 {[%clk 0:00:27]}  h5 {[%clk 0:00:49]} 48. Kf6 {[%clk 0:00:21]}  h4 {[%clk 0:00:22]} 49. Bd6# {[%clk 0:00:22]} 1-0


[Site "https://www.chess.com"]

[Event "Titled Tuesday Blitz April 19 Late 2022"]
[White "Blackman, Justin"]
[Black "Baker, Chris W"]
[WhiteFideId "11100516"]
[BlackFideId "401676"]
[WhiteElo "2112"]
[BlackElo "2229"]
[Result "0-1"]
[Round "04"]
[TimeControl "180+1"]
[Date "2022.04.19"]
[WhiteClock "0:01:23"]
[BlackClock "0:00:24"]

1. e4 {[%clk 0:02:58]}  e5 {[%clk 0:02:57]} 2. Nc3 {[%clk 0:02:54]}  Nf6 {[%clk 0:02:56]} 3. Bc4 {[%clk 0:02:54]}  Nc6 {[%clk 0:02:54]} 4. d3 {[%clk 0:02:53]}  Bb4 {[%clk 0:02:51]} 5. Nf3 {[%clk 0:02:46]}  d5 {[%clk 0:02:48]} 6. exd5 {[%clk 0:02:46]}  Nxd5 {[%clk 0:02:48]} 7. Bd2 {[%clk 0:02:46]}  Be6 {[%clk 0:02:43]} 8. Bb5 {[%clk 0:02:44]}  Nxc3 {[%clk 0:02:39]} 9. bxc3 {[%clk 0:02:44]}  Bd6 {[%clk 0:02:38]} 10. Bxc6+ {[%clk 0:02:41]}  bxc6 {[%clk 0:02:37]} 11. h3 {[%clk 0:02:41]}  h6 {[%clk 0:02:33]} 12. O-O {[%clk 0:02:40]}  O-O {[%clk 0:02:33]} 13. Re1 {[%clk 0:02:40]}  Qf6 {[%clk 0:02:27]} 14. c4 {[%clk 0:02:38]}  Rfe8 {[%clk 0:02:21]} 15. Bc3 {[%clk 0:02:38]}  Bf5 {[%clk 0:02:19]} 16. Nd2 {[%clk 0:02:34]}  Qg6 {[%clk 0:02:17]} 17. Qf3 {[%clk 0:02:28]}  Rab8 {[%clk 0:02:08]} 18. Re2 {[%clk 0:02:18]}  Bb4 {[%clk 0:01:52]} 19. Bxb4 {[%clk 0:02:06]}  Rxb4 {[%clk 0:01:51]} 20. Nb3 {[%clk 0:01:48]}  e4 {[%clk 0:01:47]} 21. Qg3 {[%clk 0:01:44]}  Qxg3 {[%clk 0:01:40]} 22. fxg3 {[%clk 0:01:45]}  Bg6 {[%clk 0:01:18]} 23. Nd4 {[%clk 0:01:42]}  c5 {[%clk 0:01:12]} 24. Nb3 {[%clk 0:01:39]}  Re5 {[%clk 0:01:06]} 25. Rae1 {[%clk 0:01:36]}  f5 {[%clk 0:01:04]} 26. g4 {[%clk 0:01:35]}  fxg4 {[%clk 0:01:01]} 27. hxg4 {[%clk 0:01:35]}  Ra4 {[%clk 0:00:59]} 28. Kh2 {[%clk 0:01:33]}  Rxa2 {[%clk 0:00:58]} 29. Kg3 {[%clk 0:01:34]}  a5 {[%clk 0:00:53]} 30. Kf4 {[%clk 0:01:34]}  Re8 {[%clk 0:00:52]} 31. Nxc5 {[%clk 0:01:33]}  Rf8+ {[%clk 0:00:50]} 32. Kg3 {[%clk 0:01:30]}  exd3 {[%clk 0:00:50]} 33. cxd3 {[%clk 0:01:31]}  Rxe2 {[%clk 0:00:48]} 34. Rxe2 {[%clk 0:01:32]}  Rd8 {[%clk 0:00:45]} 35. Kf4 {[%clk 0:01:29]}  Bxd3 {[%clk 0:00:43]} 36. Re7 {[%clk 0:01:26]}  Bxc4 {[%clk 0:00:39]} 37. Rxc7 {[%clk 0:01:26]}  Bf7 {[%clk 0:00:36]} 38. Ra7 {[%clk 0:01:25]}  Rd4+ {[%clk 0:00:35]} 39. Kg3 {[%clk 0:01:25]}  Rc4 {[%clk 0:00:28]} 40. Rxa5 {[%clk 0:01:23]}  Kh7 {[%clk 0:00:25]} 41. Nd3 {[%clk 0:01:23]}  Rc3 {[%clk 0:00:24]} 0-1


[Site "https://www.chess.com"]

[Event "Titled Tuesday Blitz April 19 Late 2022"]
[White "Bluebaum, Matthias"]
[Black "Tregubov, Pavel V."]
[WhiteFideId "24651516"]
[BlackFideId "4115341"]
[WhiteElo "2550"]
[BlackElo "2341"]
[Result "1-0"]
[Round "04"]
[TimeControl "180+1"]
[Date "2022.04.19"]
[WhiteClock "0:00:26"]
[BlackClock "0:00:16"]

1. d4 {[%clk 0:03:00]}  Nf6 {[%clk 0:02:59]} 2. c4 {[%clk 0:03:00]}  e6 {[%clk 0:03:00]} 3. Nc3 {[%clk 0:02:59]}  Bb4 {[%clk 0:03:00]} 4. e3 {[%clk 0:03:00]}  O-O {[%clk 0:02:59]} 5. Bd2 {[%clk 0:03:00]}  d5 {[%clk 0:02:59]} 6. Nf3 {[%clk 0:02:59]}  b6 {[%clk 0:02:59]} 7. cxd5 {[%clk 0:02:59]}  exd5 {[%clk 0:02:59]} 8. Bd3 {[%clk 0:03:00]}  Bb7 {[%clk 0:02:57]} 9. Qc2 {[%clk 0:03:00]}  a6 {[%clk 0:02:56]} 10. a3 {[%clk 0:03:00]}  Bd6 {[%clk 0:02:55]} 11. g4 {[%clk 0:02:57]}  Re8 {[%clk 0:02:52]} 12. g5 {[%clk 0:02:39]}  Ne4 {[%clk 0:02:51]} 13. h4 {[%clk 0:02:40]}  c5 {[%clk 0:02:46]} 14. h5 {[%clk 0:02:40]}  cxd4 {[%clk 0:02:30]} 15. Nxd4 {[%clk 0:02:37]}  Qxg5 {[%clk 0:02:30]} 16. Bxe4 {[%clk 0:02:32]}  dxe4 {[%clk 0:02:29]} 17. O-O-O {[%clk 0:02:33]}  Qf6 {[%clk 0:02:08]} 18. Kb1 {[%clk 0:02:25]}  Nd7 {[%clk 0:02:07]} 19. Nce2 {[%clk 0:02:08]}  Rac8 {[%clk 0:02:04]} 20. Bc3 {[%clk 0:02:08]}  Be5 {[%clk 0:01:45]} 21. Ng3 {[%clk 0:02:08]}  Nc5 {[%clk 0:01:41]} 22. Rhg1 {[%clk 0:01:54]}  Nd3 {[%clk 0:01:40]} 23. Ngf5 {[%clk 0:01:29]}  g6 {[%clk 0:01:39]} 24. Nh6+ {[%clk 0:01:27]}  Kf8 {[%clk 0:01:37]} 25. Ng4 {[%clk 0:01:28]}  Qd6 {[%clk 0:01:21]} 26. Nxe5 {[%clk 0:01:27]}  Rxe5 {[%clk 0:01:17]} 27. hxg6 {[%clk 0:01:23]}  fxg6 {[%clk 0:00:53]} 28. Rh1 {[%clk 0:01:22]}  Rc7 {[%clk 0:00:51]} 29. f3 {[%clk 0:01:15]}  Rec5 {[%clk 0:00:46]} 30. fxe4 {[%clk 0:01:14]}  Bxe4 {[%clk 0:00:46]} 31. Rhf1+ {[%clk 0:01:11]}  Kg8 {[%clk 0:00:43]} 32. Rxd3 {[%clk 0:01:09]}  Qd5 {[%clk 0:00:34]} 33. Ne6 {[%clk 0:00:37]}  Rf7 {[%clk 0:00:19]} 34. Rxf7 {[%clk 0:00:35]}  Kxf7 {[%clk 0:00:19]} 35. Nxc5 {[%clk 0:00:29]}  Qxc5 {[%clk 0:00:16]} 36. Rd7+ {[%clk 0:00:26]} 1-0


[Site "https://www.chess.com"]

[Event "Titled Tuesday Blitz April 19 Late 2022"]
[White "Bordi, Kevin"]
[Black "Jacobson, Brandon"]
[WhiteFideId "621862"]
[BlackFideId "30901561"]
[WhiteElo "2723"]
[BlackElo "2362"]
[Result "0-1"]
[Round "04"]
[TimeControl "180+1"]
[Date "2022.04.19"]
[WhiteClock "0:00:17"]
[BlackClock "0:00:48"]

1. e4 {[%clk 0:03:00]}  c5 {[%clk 0:02:59]} 2. Nf3 {[%clk 0:03:01]}  d6 {[%clk 0:02:59]} 3. d4 {[%clk 0:03:01]}  cxd4 {[%clk 0:03:00]} 4. Nxd4 {[%clk 0:03:02]}  Nf6 {[%clk 0:03:00]} 5. Nc3 {[%clk 0:03:02]}  Nc6 {[%clk 0:02:55]} 6. Be2 {[%clk 0:03:02]}  e5 {[%clk 0:02:56]} 7. Nb3 {[%clk 0:03:02]}  Be7 {[%clk 0:02:57]} 8. O-O {[%clk 0:03:02]}  O-O {[%clk 0:02:57]} 9. f4 {[%clk 0:03:01]}  a5 {[%clk 0:02:55]} 10. a4 {[%clk 0:02:56]}  Nb4 {[%clk 0:02:55]} 11. Be3 {[%clk 0:02:47]}  Be6 {[%clk 0:02:53]} 12. Kh1 {[%clk 0:02:30]}  Rc8 {[%clk 0:02:52]} 13. Qd2 {[%clk 0:02:24]}  Nxe4 {[%clk 0:02:26]} 14. Nxe4 {[%clk 0:02:21]}  Rxc2 {[%clk 0:02:27]} 15. Qe1 {[%clk 0:02:15]}  Bxb3 {[%clk 0:02:27]} 16. f5 {[%clk 0:02:07]}  f6 {[%clk 0:02:26]} 17. Bd1 {[%clk 0:01:51]}  Bd5 {[%clk 0:02:21]} 18. Bf3 {[%clk 0:01:43]}  Bc6 {[%clk 0:02:14]} 19. Rd1 {[%clk 0:01:38]}  d5 {[%clk 0:02:14]} 20. Qh4 {[%clk 0:01:18]}  Qe8 {[%clk 0:01:51]} 21. Bh5 {[%clk 0:01:17]}  g6 {[%clk 0:01:45]} 22. Qg4 {[%clk 0:00:32]}  Bd7 {[%clk 0:01:33]} 23. Bh6 {[%clk 0:00:28]}  Kh8 {[%clk 0:01:22]} 24. Bxf8 {[%clk 0:00:25]}  Qxf8 {[%clk 0:01:18]} 25. Bxg6 {[%clk 0:00:25]}  hxg6 {[%clk 0:01:13]} 26. Rf3 {[%clk 0:00:24]}  Bxf5 {[%clk 0:01:08]} 27. Qh4+ {[%clk 0:00:22]}  Kg8 {[%clk 0:01:05]} 28. Ng3 {[%clk 0:00:17]}  Be6 {[%clk 0:01:00]} 29. Rdf1 {[%clk 0:00:16]}  Qg7 {[%clk 0:00:53]} 30. Nh5 {[%clk 0:00:16]}  gxh5 {[%clk 0:00:52]} 31. Qxh5 {[%clk 0:00:17]}  Qxg2# {[%clk 0:00:48]} 0-1


[Site "https://www.chess.com"]

[Event "Titled Tuesday Blitz April 19 Late 2022"]
[White "Bowden, Karl"]
[Black "Skliarov, Viktor"]
[WhiteFideId "400548"]
[BlackFideId "14106736"]
[WhiteElo "2334"]
[BlackElo "2229"]
[Result "0-1"]
[Round "04"]
[TimeControl "180+1"]
[Date "2022.04.19"]
[WhiteClock "0:00:02"]
[BlackClock "0:00:21"]

1. e4 {[%clk 0:03:00]}  c5 {[%clk 0:02:59]} 2. c3 {[%clk 0:03:00]}  d6 {[%clk 0:02:59]} 3. d4 {[%clk 0:03:00]}  Nf6 {[%clk 0:02:59]} 4. Bd3 {[%clk 0:02:55]}  g6 {[%clk 0:02:59]} 5. dxc5 {[%clk 0:02:52]}  dxc5 {[%clk 0:02:59]} 6. e5 {[%clk 0:02:52]}  Nh5 {[%clk 0:02:59]} 7. f4 {[%clk 0:02:45]}  Nc6 {[%clk 0:02:40]} 8. Nf3 {[%clk 0:02:43]}  Bh6 {[%clk 0:02:34]} 9. g3 {[%clk 0:02:09]}  Bh3 {[%clk 0:02:28]} 10. Qe2 {[%clk 0:01:57]}  O-O {[%clk 0:02:09]} 11. Be3 {[%clk 0:01:49]}  Qd7 {[%clk 0:01:32]} 12. Nbd2 {[%clk 0:01:41]}  Rad8 {[%clk 0:01:32]} 13. Be4 {[%clk 0:01:13]}  b6 {[%clk 0:01:25]} 14. O-O-O {[%clk 0:01:09]}  Bf5 {[%clk 0:01:24]} 15. Nh4 {[%clk 0:00:42]}  Bxe4 {[%clk 0:01:11]} 16. Nxe4 {[%clk 0:00:41]}  Qe6 {[%clk 0:01:11]} 17. Kb1 {[%clk 0:00:34]}  f5 {[%clk 0:01:06]} 18. Nd2 {[%clk 0:00:20]}  Na5 {[%clk 0:01:03]} 19. Ndf3 {[%clk 0:00:19]}  Ng7 {[%clk 0:00:56]} 20. Ng2 {[%clk 0:00:17]}  Qc6 {[%clk 0:00:47]} 21. Bc1 {[%clk 0:00:15]}  b5 {[%clk 0:00:43]} 22. h4 {[%clk 0:00:14]}  Nh5 {[%clk 0:00:42]} 23. Qf2 {[%clk 0:00:12]}  e6 {[%clk 0:00:30]} 24. b3 {[%clk 0:00:05]}  b4 {[%clk 0:00:20]} 25. c4 {[%clk 0:00:04]}  Qe4+ {[%clk 0:00:20]} 26. Kb2 {[%clk 0:00:02]}  Nc6 {[%clk 0:00:21]} 0-1


[Site "https://www.chess.com"]

[Event "Titled Tuesday Blitz April 19 Late 2022"]
[White "Bryakin, Mikhail"]
[Black "Hnydiuk, Aleksander"]
[WhiteFideId "4165314"]
[BlackFideId "1109057"]
[WhiteElo "2417"]
[BlackElo "2374"]
[Result "1/2-1/2"]
[Round "04"]
[TimeControl "180+1"]
[Date "2022.04.19"]
[WhiteClock "0:01:26"]
[BlackClock "0:00:04"]

1. e4 {[%clk 0:03:00]}  Nf6 {[%clk 0:02:58]} 2. e5 {[%clk 0:02:56]}  Nd5 {[%clk 0:02:58]} 3. Nf3 {[%clk 0:02:57]}  d6 {[%clk 0:02:58]} 4. d4 {[%clk 0:02:55]}  dxe5 {[%clk 0:02:58]} 5. dxe5 {[%clk 0:02:54]}  Bg4 {[%clk 0:02:57]} 6. Be2 {[%clk 0:02:55]}  Nc6 {[%clk 0:02:56]} 7. h3 {[%clk 0:02:54]}  Bxf3 {[%clk 0:02:55]} 8. Bxf3 {[%clk 0:02:55]}  e6 {[%clk 0:02:55]} 9. Bxd5 {[%clk 0:02:53]}  Qxd5 {[%clk 0:02:54]} 10. Qxd5 {[%clk 0:02:53]}  exd5 {[%clk 0:02:55]} 11. f4 {[%clk 0:02:53]}  Bc5 {[%clk 0:02:49]} 12. c3 {[%clk 0:02:52]}  O-O-O {[%clk 0:02:48]} 13. Nd2 {[%clk 0:02:53]}  Rhe8 {[%clk 0:02:45]} 14. Nb3 {[%clk 0:02:53]}  Bb6 {[%clk 0:02:45]} 15. Kd1 {[%clk 0:02:44]}  h5 {[%clk 0:02:27]} 16. Re1 {[%clk 0:02:37]}  h4 {[%clk 0:02:17]} 17. Bd2 {[%clk 0:02:36]}  Bf2 {[%clk 0:01:49]} 18. Re2 {[%clk 0:02:35]}  Bg3 {[%clk 0:01:49]} 19. Nd4 {[%clk 0:02:32]}  Ne7 {[%clk 0:01:33]} 20. Kc2 {[%clk 0:02:29]}  a6 {[%clk 0:01:31]} 21. Rf1 {[%clk 0:02:28]}  c5 {[%clk 0:01:30]} 22. Nb3 {[%clk 0:02:28]}  b6 {[%clk 0:01:29]} 23. Be1 {[%clk 0:02:28]}  Nf5 {[%clk 0:01:28]} 24. Rf3 {[%clk 0:02:26]}  Kc7 {[%clk 0:01:25]} 25. Nd2 {[%clk 0:02:23]}  d4 {[%clk 0:01:19]} 26. Bxg3 {[%clk 0:02:17]}  Nxg3 {[%clk 0:01:13]} 27. Re1 {[%clk 0:02:17]}  Nf5 {[%clk 0:01:08]} 28. Ne4 {[%clk 0:02:07]}  f6 {[%clk 0:01:02]} 29. Nd2 {[%clk 0:01:55]}  Ne3+ {[%clk 0:00:59]} 30. Rexe3 {[%clk 0:01:55]}  dxe3 {[%clk 0:00:59]} 31. Rxe3 {[%clk 0:01:56]}  fxe5 {[%clk 0:00:57]} 32. fxe5 {[%clk 0:01:56]}  Rd5 {[%clk 0:00:48]} 33. Nf3 {[%clk 0:01:56]}  Re6 {[%clk 0:00:44]} 34. Re4 {[%clk 0:01:53]}  g5 {[%clk 0:00:31]} 35. c4 {[%clk 0:01:52]}  Rd7 {[%clk 0:00:23]} 36. Nxg5 {[%clk 0:01:51]}  Rg6 {[%clk 0:00:23]} 37. e6 {[%clk 0:01:50]}  Re7 {[%clk 0:00:23]} 38. Re5 {[%clk 0:01:46]}  Kd6 {[%clk 0:00:18]} 39. Nf7+ {[%clk 0:01:46]}  Kc7 {[%clk 0:00:15]} 40. Ng5 {[%clk 0:01:47]}  Kd6 {[%clk 0:00:14]} 41. Rd5+ {[%clk 0:01:46]}  Kc6 {[%clk 0:00:15]} 42. Kd3 {[%clk 0:01:43]}  Reg7 {[%clk 0:00:15]} 43. Nf7 {[%clk 0:01:39]}  Rg3+ {[%clk 0:00:13]} 44. Ke4 {[%clk 0:01:39]}  Rxg2 {[%clk 0:00:11]} 45. Rd7 {[%clk 0:01:35]}  Re2+ {[%clk 0:00:10]} 46. Kf5 {[%clk 0:01:36]}  Rf2+ {[%clk 0:00:08]} 47. Ke5 {[%clk 0:01:37]}  Re2+ {[%clk 0:00:08]} 48. Kf6 {[%clk 0:01:37]}  Rg6+ {[%clk 0:00:04]} 49. Kf5 {[%clk 0:01:29]}  Rexe6 {[%clk 0:00:05]} 50. Ra7 {[%clk 0:01:25]}  Ref6+ {[%clk 0:00:03]} 51. Ke5 {[%clk 0:01:25]}  Re6+ {[%clk 0:00:03]} 52. Kf5 {[%clk 0:01:26]}  Ref6+ {[%clk 0:00:03]} 53. Ke5 {[%clk 0:01:26]}  Re6+ {[%clk 0:00:04]} 54. Kf5 {[%clk 0:01:26]} 1/2-1/2


[Site "https://www.chess.com"]

[Event "Titled Tuesday Blitz April 19 Late 2022"]
[White "Caruana, Fabiano"]
[Black "Goncalves, Ivan Mesquita V"]
[WhiteFideId "2020009"]
[BlackFideId "2114224"]
[WhiteElo "2744"]
[BlackElo "2299"]
[Result "1-0"]
[Round "04"]
[TimeControl "180+1"]
[Date "2022.04.19"]
[WhiteClock "0:00:55"]
[BlackClock "0:00:01"]

1. e4 {[%clk 0:03:00]}  c5 {[%clk 0:02:58]} 2. Nf3 {[%clk 0:03:00]}  e6 {[%clk 0:02:57]} 3. c3 {[%clk 0:03:00]}  Nf6 {[%clk 0:02:56]} 4. Bd3 {[%clk 0:02:59]}  g5 {[%clk 0:02:20]} 5. O-O {[%clk 0:02:48]}  g4 {[%clk 0:02:18]} 6. Ne5 {[%clk 0:02:48]}  h5 {[%clk 0:02:12]} 7. Re1 {[%clk 0:02:42]}  d6 {[%clk 0:02:06]} 8. Bb5+ {[%clk 0:02:41]}  Nbd7 {[%clk 0:02:01]} 9. Nxd7 {[%clk 0:02:40]}  Bxd7 {[%clk 0:01:59]} 10. Bxd7+ {[%clk 0:02:40]}  Qxd7 {[%clk 0:02:00]} 11. d4 {[%clk 0:02:41]}  d5 {[%clk 0:01:52]} 12. exd5 {[%clk 0:02:38]}  Qxd5 {[%clk 0:01:46]} 13. Bf4 {[%clk 0:02:38]}  Be7 {[%clk 0:01:27]} 14. Na3 {[%clk 0:02:09]}  a6 {[%clk 0:01:08]} 15. Be5 {[%clk 0:01:59]}  cxd4 {[%clk 0:00:56]} 16. cxd4 {[%clk 0:01:58]}  h4 {[%clk 0:00:46]} 17. Nc2 {[%clk 0:01:56]}  Rg8 {[%clk 0:00:34]} 18. Ne3 {[%clk 0:01:55]}  Qd7 {[%clk 0:00:31]} 19. Qe2 {[%clk 0:01:42]}  Nd5 {[%clk 0:00:22]} 20. Nxg4 {[%clk 0:01:22]}  h3 {[%clk 0:00:21]} 21. Bg3 {[%clk 0:01:19]}  hxg2 {[%clk 0:00:15]} 22. Ne5 {[%clk 0:01:19]}  Qd8 {[%clk 0:00:09]} 23. Qh5 {[%clk 0:01:19]}  Rf8 {[%clk 0:00:06]} 24. Nd3 {[%clk 0:01:01]}  Qb6 {[%clk 0:00:06]} 25. Nc5 {[%clk 0:00:59]}  Qxb2 {[%clk 0:00:05]} 26. Nxe6 {[%clk 0:00:57]}  Rg8 {[%clk 0:00:03]} 27. Qxd5 {[%clk 0:00:56]}  fxe6 {[%clk 0:00:02]} 28. Qxe6 {[%clk 0:00:56]}  Rg7 {[%clk 0:00:01]} 29. d5 {[%clk 0:00:55]}  Qb4 {[%clk 0:00:01]} 1-0


[Site "https://www.chess.com"]

[Event "Titled Tuesday Blitz April 19 Late 2022"]
[White "Czopor, Maciej"]
[Black "Golubev, Mikhail"]
[WhiteFideId "21805431"]
[BlackFideId "14100983"]
[WhiteElo "1999"]
[BlackElo "2374"]
[Result "1-0"]
[Round "04"]
[TimeControl "180+1"]
[Date "2022.04.19"]
[WhiteClock "0:00:19"]
[BlackClock "0:00:32"]

1. d4 {[%clk 0:02:52]}  Nf6 {[%clk 0:02:59]} 2. c4 {[%clk 0:02:52]}  g6 {[%clk 0:02:58]} 3. Nc3 {[%clk 0:02:52]}  Bg7 {[%clk 0:02:59]} 4. e4 {[%clk 0:02:53]}  d6 {[%clk 0:02:59]} 5. Be2 {[%clk 0:02:53]}  O-O {[%clk 0:02:59]} 6. Be3 {[%clk 0:02:54]}  c5 {[%clk 0:02:58]} 7. d5 {[%clk 0:02:54]}  e6 {[%clk 0:02:58]} 8. h4 {[%clk 0:02:52]}  exd5 {[%clk 0:02:55]} 9. exd5 {[%clk 0:02:53]}  h5 {[%clk 0:02:47]} 10. Nh3 {[%clk 0:02:50]}  Re8 {[%clk 0:02:43]} 11. Qd2 {[%clk 0:02:45]}  a6 {[%clk 0:02:34]} 12. a4 {[%clk 0:02:37]}  Bxh3 {[%clk 0:02:33]} 13. Rxh3 {[%clk 0:02:29]}  Nbd7 {[%clk 0:02:33]} 14. a5 {[%clk 0:02:03]}  Ne4 {[%clk 0:02:29]} 15. Nxe4 {[%clk 0:02:02]}  Rxe4 {[%clk 0:02:29]} 16. Bd3 {[%clk 0:02:00]}  Rxh4 {[%clk 0:02:22]} 17. Rxh4 {[%clk 0:01:56]}  Qxh4 {[%clk 0:02:22]} 18. O-O-O {[%clk 0:01:57]}  b6 {[%clk 0:02:08]} 19. axb6 {[%clk 0:01:55]}  Rb8 {[%clk 0:02:04]} 20. Kc2 {[%clk 0:00:54]}  Rxb6 {[%clk 0:02:02]} 21. b3 {[%clk 0:00:53]}  Qd8 {[%clk 0:01:53]} 22. Bg5 {[%clk 0:00:48]}  Qb8 {[%clk 0:01:51]} 23. Rb1 {[%clk 0:00:42]}  Ne5 {[%clk 0:01:41]} 24. f4 {[%clk 0:00:31]}  Nxd3 {[%clk 0:01:40]} 25. Qxd3 {[%clk 0:00:32]}  a5 {[%clk 0:01:39]} 26. f5 {[%clk 0:00:31]}  a4 {[%clk 0:01:38]} 27. fxg6 {[%clk 0:00:30]}  axb3+ {[%clk 0:01:28]} 28. Rxb3 {[%clk 0:00:28]}  Rxb3 {[%clk 0:01:27]} 29. Qxb3 {[%clk 0:00:27]}  Qxb3+ {[%clk 0:01:26]} 30. Kxb3 {[%clk 0:00:28]}  fxg6 {[%clk 0:01:26]} 31. Ka4 {[%clk 0:00:25]}  Kf7 {[%clk 0:01:21]} 32. Kb5 {[%clk 0:00:25]}  Bf8 {[%clk 0:01:10]} 33. Kc6 {[%clk 0:00:23]}  Be7 {[%clk 0:01:08]} 34. Bf4 {[%clk 0:00:21]}  g5 {[%clk 0:00:32]} 35. Bxd6 {[%clk 0:00:21]}  h4 {[%clk 0:00:32]} 36. Bxe7 {[%clk 0:00:19]}  Kxe7 {[%clk 0:00:32]} 37. Kc7 {[%clk 0:00:19]} 1-0


[Site "https://www.chess.com"]

[Event "Titled Tuesday Blitz April 19 Late 2022"]
[White "Davtyan, David Arm."]
[Black "Khripachenko, Alexander"]
[WhiteFideId "13310046"]
[BlackFideId "54184975"]
[WhiteElo "2158"]
[BlackElo "2193"]
[Result "0-1"]
[Round "04"]
[TimeControl "180+1"]
[Date "2022.04.19"]
[WhiteClock "0:01:34"]
[BlackClock "0:00:51"]

1. c4 {[%clk 0:02:54]}  e5 {[%clk 0:02:57]} 2. Nc3 {[%clk 0:02:55]}  Bb4 {[%clk 0:02:57]} 3. g3 {[%clk 0:02:54]}  Bxc3 {[%clk 0:02:55]} 4. dxc3 {[%clk 0:02:54]}  Nf6 {[%clk 0:02:56]} 5. Bg2 {[%clk 0:02:55]}  O-O {[%clk 0:02:57]} 6. Nf3 {[%clk 0:02:51]}  Re8 {[%clk 0:02:57]} 7. Nd2 {[%clk 0:02:50]}  e4 {[%clk 0:02:50]} 8. Nf1 {[%clk 0:02:50]}  h6 {[%clk 0:02:49]} 9. Ne3 {[%clk 0:02:46]}  Nc6 {[%clk 0:02:50]} 10. O-O {[%clk 0:02:44]}  d6 {[%clk 0:02:50]} 11. b3 {[%clk 0:02:39]}  a5 {[%clk 0:02:50]} 12. a4 {[%clk 0:02:39]}  Be6 {[%clk 0:02:48]} 13. Qc2 {[%clk 0:02:31]}  Qd7 {[%clk 0:02:47]} 14. Rd1 {[%clk 0:02:29]}  Bh3 {[%clk 0:02:47]} 15. Bh1 {[%clk 0:02:28]}  Qe6 {[%clk 0:02:46]} 16. Nd5 {[%clk 0:02:25]}  Rac8 {[%clk 0:02:44]} 17. Nf4 {[%clk 0:02:23]}  Qf5 {[%clk 0:02:41]} 18. Be3 {[%clk 0:02:20]}  Bg4 {[%clk 0:02:38]} 19. Rd5 {[%clk 0:02:08]}  Nxd5 {[%clk 0:02:27]} 20. cxd5 {[%clk 0:02:09]}  Ne5 {[%clk 0:02:27]} 21. Bxe4 {[%clk 0:02:08]}  Qd7 {[%clk 0:02:25]} 22. f3 {[%clk 0:02:06]}  f5 {[%clk 0:01:29]} 23. fxg4 {[%clk 0:01:52]}  fxe4 {[%clk 0:01:28]} 24. g5 {[%clk 0:01:50]}  Ng4 {[%clk 0:01:28]} 25. Bd4 {[%clk 0:01:43]}  hxg5 {[%clk 0:01:26]} 26. Ne6 {[%clk 0:01:43]}  Rxe6 {[%clk 0:01:06]} 27. dxe6 {[%clk 0:01:44]}  Qxe6 {[%clk 0:01:07]} 28. Rf1 {[%clk 0:01:39]}  c5 {[%clk 0:01:06]} 29. Bf2 {[%clk 0:01:39]}  Rf8 {[%clk 0:01:06]} 30. Qc1 {[%clk 0:01:36]}  e3 {[%clk 0:01:01]} 31. Be1 {[%clk 0:01:35]}  Rxf1+ {[%clk 0:01:00]} 32. Kxf1 {[%clk 0:01:35]}  Nxh2+ {[%clk 0:00:59]} 33. Kg2 {[%clk 0:01:35]}  Ng4 {[%clk 0:01:00]} 34. c4 {[%clk 0:01:36]}  Qe4+ {[%clk 0:00:58]} 35. Kh3 {[%clk 0:01:36]}  Nf6 {[%clk 0:00:52]} 36. Bc3 {[%clk 0:01:35]}  b6 {[%clk 0:00:51]} 37. Bxf6 {[%clk 0:01:35]}  gxf6 {[%clk 0:00:52]} 38. Qc3 {[%clk 0:01:34]}  Kf7 {[%clk 0:00:51]} 0-1


[Site "https://www.chess.com"]